[Event "2017 South African Open Ch"]
[Site "Durban"]
[Date "2017.07.16"]
[Round "5"]
[White "Bhawoodien, Shabir Hussain"]
[Black "Southey, Andrew M"]
[Result "1/2-1/2"]
[ECO "B20"]
[WhiteElo "2066"]
[BlackElo "1807"]
[Annotator "NA"]
[PlyCount "68"]
[EventDate "2017.??.??"]
[EventCountry "RSA"]
[SourceTitle "playchess.com"]
[Source "ChessBase"]
[SourceQuality "1"]
[TimeControl "5400+30"]

1. e4 {[%emt 0:06:39]} c5 {[%emt 0:00:13]} 2. c4 {[%emt 0:00:02]} g6 {[%emt 0:00:44]} 3. Nc3 {[%emt 0:00:47]} Bg7 {[%emt 0:00:15]} 4. Nge2 {[%emt 0:00:07]} Nc6 {[%emt 0:00:44]} 5. g3 {[%emt 0:00:01]} d6 {[%emt 0:00:37]} 6. Bg2 {[%emt 0:00:20]} Nf6 {[%emt 0:00:41]} 7. O-O {[%emt 0:00:17]} O-O {[%emt 0:00:24]} 8. d3 {[%emt 0:00:13]} Nd4 {[%emt 0:08:09]} 9. Nxd4 {[%emt 0:00:48]} cxd4 {[%emt 0:00:03]} 10. Ne2 {[%emt 0:00:08]} Nd7 {[%emt 0:00:37]} 11. f4 {[%emt 0:02:24]} a5 {[%emt 0:00:36]} 12. b3 {[%emt 0:01:25]} Nc5 {[%emt 0:03:52]} 13. f5 {[%emt 0:06:08]} e5 {[%emt 0:02:49]} 14. g4 {[%emt 0:18:01]} f6 {[%emt 0:06:47]} 15. Rf3 {[%emt 0:06:46]} Rf7 {[%emt 0:04:45]} 16. h4 {[%emt 0:02:36]} Bd7 {[%emt 0:04:25]} 17. Ng3 {[%emt 0:07:05]} Qe7 {[%emt 0:04:36]} 18. a4 {[%emt 0:05:05]} Kh8 {[%emt 0:01:17]} 19. Bd2 {[%emt 0:00:27]} b6 {[%emt 0:00:08]} 20. Bh3 {[%emt 0:05:27]} Qf8 {[%emt 0:03:50]} 21. Rb1 {[%emt 0:07:57]} gxf5 {[%emt 0:04:13]} 22. Nxf5 {[%emt 0:05:20]} Bxf5 {[%emt 0:00:21]} 23. exf5 {[%emt 0:02:23]} e4 {[%emt 0:03:01]} 24. dxe4 {[%emt 0:02:27]} Nxe4 {[%emt 0:00:09]} 25. Be1 {[%emt 0:00:59]} Nc3 {[%emt 0:00:45]} 26. Bxc3 {[%emt 0:02:45]} dxc3 {[%emt 0:00:03]} 27. Rxc3 {[%emt 0:00:01]} Re7 {[%emt 0:03:59]} 28. Qd4 {[%emt 0:00:26]} Rae8 {[%emt 0:00:09]} 29. Rf1 {[%emt 0:02:31]} Re4 {[%emt 0:00:55]} 30. Qd1 {[%emt 0:06:55]} Bh6 {[%emt 0:00:11]} 31. g5 fxg5 32. f6 Rxh4 33. f7 Re5 34. Rd3 g4 1/2-1/2

[Event "2017 South African Open Ch"]
[Site "Durban"]
[Date "2017.07.16"]
[Round "5"]
[White "Salimu, Reuben"]
[Black "Essa, Naseem Ahmed"]
[Result "1/2-1/2"]
[ECO "C11"]
[WhiteElo "1968"]
[BlackElo "1682"]
[Annotator "NA"]
[PlyCount "68"]
[EventDate "2017.??.??"]
[EventCountry "RSA"]
[SourceTitle "playchess.com"]
[Source "ChessBase"]
[SourceQuality "1"]
[TimeControl "5400+30"]

1. e4 {[%emt 0:02:46]} e6 {[%emt 0:01:46]} 2. Nf3 {[%emt 0:00:07]} d5 {[%emt 0:00:11]} 3. Nc3 {[%emt 0:00:06]} Nf6 {[%emt 0:00:18]} 4. e5 {[%emt 0:00:02]} Nfd7 {[%emt 0:05:12]} 5. d4 {[%emt 0:00:13]} Be7 {[%emt 0:15:24]} 6. Bd3 {[%emt 0:02:13]} a6 {[%emt 0:03:34]} 7. O-O {[%emt 0:00:22]} c5 {[%emt 0:00:08]} 8. dxc5 {[%emt 0:00:11]} Nxc5 {[%emt 0:01:20]} 9. Bf4 {[%emt 0:02:05]} Nc6 {[%emt 0:02:52]} 10. Qe2 {[%emt 0:00:07]} O-O {[%emt 0:38:40]} 11. Rae1 {[%emt 0:11:13]} b5 {[%emt 0:10:57]} 12. h4 {[%emt 0:18:43]} Nxd3 {[%emt 0:01:25]} 13. cxd3 {[%emt 0:01:51]} b4 {[%emt 0:09:16]} 14. Nb1 {[%emt 0:02:25]} f6 {[%emt 0:02:45]} 15. exf6 {[%emt 0:02:24]} Bxf6 {[%emt 0:00:05]} 16. Bg5 {[%emt 0:00:26]} Bd7 {[%emt 0:01:41]} 17. Rc1 {[%emt 0:01:25]} h6 {[%emt 0:01:42]} 18. Bxf6 {[%emt 0:00:30]} Qxf6 {[%emt 0:00:04]} 19. Rc5 {[%emt 0:00:49]} Rac8 {[%emt 0:01:48]} 20. Rfc1 {[%emt 0:00:55]} Nd4 {[%emt 0:00:32]} 21. Nxd4 {[%emt 0:01:33]} Rxc5 {[%emt 0:00:27]} 22. Rxc5 {[%emt 0:00:22]} Qxd4 {[%emt 0:00:03]} 23. Rc7 {[%emt 0:00:29]} Bb5 {[%emt 0:01:14]} 24. Rc8 {[%emt 0:09:37]} Rxc8 {[%emt 0:00:32]} 25. Qxe6+ {[%emt 0:00:11]} Kh7 {[%emt 0:00:13]} 26. Qf5+ {[%emt 0:00:14]} g6 {[%emt 0:00:41]} 27. Qxc8 {[%emt 0:00:06]} Bxd3 {[%emt 0:00:08]} 28. Qd7+ {[%emt 0:00:26]} Qg7 {[%emt 0:00:12]} 29. Qxg7+ {[%emt 0:01:08]} Kxg7 {[%emt 0:00:01]} 30. Nd2 {[%emt 0:00:11]} Bc4 {[%emt 0:00:27]} 31. a3 {[%emt 0:03:26]} bxa3 {[%emt 0:00:04]} 32. bxa3 {[%emt 0:00:07]} Kf6 {[%emt 0:00:03]} 33. f4 {[%emt 0:02:50]} Ke6 {[%emt 0:02:06]} 34. Kf2 {[%emt 0:00:25]} h5 {[%emt 0:01:04]} 1/2-1/2

[Event "2017 South African Open Ch"]
[Site "Durban"]
[Date "2017.07.16"]
[Round "5"]
[White "Tavagwisa, Lawrence"]
[Black "Gluckman, Paul"]
[Result "1-0"]
[ECO "B28"]
[WhiteElo "1935"]
[BlackElo "1981"]
[Annotator "NA"]
[PlyCount "87"]
[EventDate "2017.??.??"]
[EventCountry "RSA"]
[SourceTitle "playchess.com"]
[Source "ChessBase"]
[SourceQuality "1"]
[TimeControl "5400+30"]

1. e4 {[%emt 0:00:00]} c5 {[%emt 0:00:11]} 2. Nf3 {[%emt 0:00:00]} a6 {[%emt 0:00:07]} 3. g3 {[%emt 0:00:00]} d6 {[%emt 0:02:07]} 4. Bg2 {[%emt 0:00:12]} Nf6 {[%emt 0:00:55]} 5. d3 {[%emt 0:01:00]} e6 {[%emt 0:00:27]} 6. O-O {[%emt 0:00:46]} Be7 {[%emt 0:00:15]} 7. c3 {[%emt 0:02:46]} O-O {[%emt 0:00:52]} 8. Qe2 {[%emt 0:02:43]} Nc6 {[%emt 0:00:54]} 9. Rd1 {[%emt 0:02:45]} d5 {[%emt 0:00:34]} 10. e5 {[%emt 0:02:27]} Nd7 {[%emt 0:00:16]} 11. d4 {[%emt 0:00:42]} b5 {[%emt 0:02:04]} 12. Nbd2 {[%emt 0:04:53]} Qb6 {[%emt 0:10:23]} 13. Nf1 {[%emt 0:00:55]} a5 {[%emt 0:00:42]} 14. h4 {[%emt 0:01:18]} Ba6 {[%emt 0:01:20]} 15. Be3 {[%emt 0:03:43]} b4 {[%emt 0:02:44]} 16. Qd2 {[%emt 0:00:49]} bxc3 {[%emt 0:02:10]} 17. bxc3 {[%emt 0:00:47]} Rab8 {[%emt 0:00:29]} 18. Rac1 {[%emt 0:05:38]} Rfc8 {[%emt 0:02:28]} 19. Bg5 {[%emt 0:04:51]} cxd4 {[%emt 0:01:19]} 20. cxd4 {[%emt 0:01:01]} Ba3 {[%emt 0:01:07]} 21. Rc2 {[%emt 0:04:22]} Nb4 {[%emt 0:09:31]} 22. Rc3 {[%emt 0:00:49]} Rxc3 {[%emt 0:20:41]} 23. Qxc3 {[%emt 0:00:16]} Be2 {[%emt 0:01:55]} 24. Rd2 {[%emt 0:01:14]} Bxf3 {[%emt 0:00:43]} 25. Bxf3 {[%emt 0:00:48]} Nc6 {[%emt 0:01:50]} 26. Qxa3 {[%emt 0:00:49]} Nxd4 {[%emt 0:00:10]} 27. Bd1 {[%emt 0:04:01]} Nxe5 {[%emt 0:03:26]} 28. Bf4 {[%emt 0:02:17]} f6 {[%emt 0:02:01]} 29. Qc3 {[%emt 0:05:26]} Ndc6 {[%emt 0:03:00]} 30. Ba4 {[%emt 0:01:32]} d4 {[%emt 0:09:48]} 31. Qb3 {[%emt 0:02:13]} Qxb3 {[%emt 0:02:09]} 32. axb3 {[%emt 0:00:14]} Nf3+ {[%emt 0:07:36]} 33. Kg2 {[%emt 0:01:15]} Nce5 {[%emt 0:03:45]} 34. Bxe5 {[%emt 0:00:36]} Ne1+ {[%emt 0:00:09]} 35. Kh3 {[%emt 0:05:32]} fxe5 {[%emt 0:00:20]} 36. Kg4 {[%emt 0:05:17]} Rb4 {[%emt 0:00:33]} 37. Rd1 {[%emt 0:06:02]} Nc2 {[%emt 0:07:51]} 38. Nd2 {[%emt 0:02:09]} Rb7 {[%emt 0:01:58]} 39. Rc1 {[%emt 0:02:58]} Nb4 {[%emt 0:00:06]} 40. Rc8+ {[%emt 0:02:21]} Kf7 {[%emt 0:00:05]} 41. Kf3 {[%emt 0:00:42]} Kf6 {[%emt 0:00:45]} 42. Ne4+ {[%emt 0:01:48]} Ke7 {[%emt 0:00:40]} 43. Re8+ {[%emt 0:00:14]} Kf7 {[%emt 0:00:07]} 44. Nd6+ {[%emt 0:00:08]} 1-0

[Event "2017 South African Open Ch"]
[Site "Durban"]
[Date "2017.07.16"]
[Round "5"]
[White "Wilken, Justin Barend"]
[Black "Mwale Joseph"]
[Result "0-1"]
[ECO "C48"]
[WhiteElo "1920"]
[BlackElo "2159"]
[Annotator "NA"]
[PlyCount "150"]
[EventDate "2017.??.??"]
[EventCountry "RSA"]
[SourceTitle "playchess.com"]
[Source "ChessBase"]
[SourceQuality "1"]
[TimeControl "5400+30"]

1. e4 {[%emt 0:00:00]} e5 {[%emt 0:00:04]} 2. Nf3 {[%emt 0:00:00]} Nc6 {[%emt 0:00:05]} 3. Nc3 {[%emt 0:00:00]} Nf6 {[%emt 0:00:06]} 4. Bb5 {[%emt 0:01:05]} Nd4 {[%emt 0:00:12]} 5. Nxe5 {[%emt 0:00:38]} Qe7 {[%emt 0:01:43]} 6. Nf3 {[%emt 0:03:27] C48: Four Knights: 4 Bb5, replies other than 4...Bb4} (6. f4 Nxb5 7. Nxb5 d6 8. Nf3 Qxe4+ 9. Kf2 Ng4+ 10. Kg3 Qg6 11. Nh4 Qf6 12. h3 g5 13. Qe2+ Ne5 14. d4 gxf4+ {½-½ (21) Popov,I (2613)-Svidler,P (2730) Aix les Bains 2011}) 6... Nxb5 {[%emt 0:04:50]} 7. Nxb5 {[%emt 0:00:07]} Qxe4+ {[%emt 0:00:05]} 8. Qe2 {[%emt 0:00:21]} Qxe2+ {[%emt 0:00:04]} 9. Kxe2 {[%emt 0:00:04]} Nd5 {[%emt 0:00:05]} 10. Re1 {[%emt 0:17:22]} a6 {[%emt 0:01:41]} 11. Nbd4 {[%emt 0:00:59]} d6 {[%emt 0:00:27]} 12. c4 {[%emt 0:06:51]} Nb6 {[%emt 0:00:22]} 13. Kf1+ {[%emt 0:02:37]} Be7 {[%emt 0:00:18]} 14. b3 $146 {[%emt 0:00:41]} ({Predecessor:} 14. d3 c5 15. Bg5 f6 16. Bf4 Kf7 17. Nb3 {½-½ (17) Pihlajasalo,A (2190)-Molander,R Helsinki 1996}) 14... c5 {[%emt 0:02:09]} 15. Ne2 {[%emt 0:03:21]} O-O {[%emt 0:00:48]} 16. Bb2 {[%emt 0:00:24]} Re8 {[%emt 0:00:30]} 17. Ng3 {[%emt 0:06:35]} d5 {[%emt 0:02:42]} 18. d3 {[%emt 0:04:27]} Be6 {[%emt 0:03:30]} 19. h3 {[%emt 0:04:22]} a5 {[%emt 0:01:07]} 20. a4 {[%emt 0:03:01]} Nd7 {[%emt 0:08:02]} 21. Nh5 {[%emt 0:07:56]} Bf6 {[%emt 0:11:56]} 22. Nxf6+ {[%emt 0:03:01]} Nxf6 {[%emt 0:12:18]} 23. Bxf6 {[%emt 0:05:09]} gxf6 {[%emt 0:00:02]} 24. Nh4 {[%emt 0:00:34]} Red8 {[%emt 0:06:43]} 25. Re3 {[%emt 0:07:24]} Ra6 {[%emt 0:01:28]} 26. f4 {[%emt 0:00:53]} f5 {[%emt 0:00:54]} 27. g4 {[%emt 0:00:43]} fxg4 {[%emt 0:01:51]} 28. f5 {[%emt 0:00:17]} Bc8 {[%emt 0:01:20]} 29. hxg4 {[%emt 0:01:46]} Rh6 {[%emt 0:01:00]} 30. Rae1 {[%emt 0:01:23]} Rxh4 {[%emt 0:05:44]} 31. Re8+ {[%emt 0:00:12]} Rxe8 {[%emt 0:00:04]} 32. Rxe8+ {[%emt 0:00:02]} Kg7 {[%emt 0:00:05]} 33. Rxc8 {[%emt 0:00:09]} dxc4 {[%emt 0:00:03]} 34. bxc4 {[%emt 0:01:07]} b6 {[%emt 0:00:04]} 35. Rc6 {[%emt 0:03:26]} Rxg4 {[%emt 0:01:19]} 36. Rxb6 {[%emt 0:00:02]} h5 {[%emt 0:00:51]} 37. Rb5 {[%emt 0:00:56]} h4 {[%emt 0:00:15]} 38. f6+ {[%emt 0:01:34]} Kg6 {[%emt 0:00:29]} 39. Rb8 {[%emt 0:02:47]} Kxf6 {[%emt 0:00:42]} 40. Rh8 {[%emt 0:01:12]} Ke5 {[%emt 0:01:36]} 41. Kf2 {[%emt 0:01:56]} Kd4 {[%emt 0:00:51]} 42. Rd8+ {[%emt 0:01:35]} Kc3 {[%emt 0:00:16]} 43. Rd5 {[%emt 0:00:23]} Kb4 {[%emt 0:01:10]} 44. Rf5 {[%emt 0:00:32]} Rd4 {[%emt 0:01:50]} 45. Ke3 {[%emt 0:00:37]} h3 {[%emt 0:02:49]} 46. Rh5 {[%emt 0:00:45]} Kxa4 {[%emt 0:00:27]} 47. Rxh3 {[%emt 0:01:23]} Kb4 {[%emt 0:00:05]} 48. Kd2 {[%emt 0:00:34]} Rg4 {[%emt 0:00:24]} 49. Rh2 {[%emt 0:03:09]} a4 {[%emt 0:00:25]} 50. Rf2 {[%emt 0:00:43]} Rg7 {[%emt 0:01:04]} ({Don't do} 50... a3 51. Kc2 $19) 51. Rf6 {[%emt 0:02:37]} Rg2+ {[%emt 0:00:51]} 52. Ke3 Kc3 {[%emt 0:00:40]} 53. Rxf7 {[%emt 0:01:39]} Rg3+ {[%emt 0:00:07]} 54. Ke2 {[%emt 0:00:16]} Rxd3 $19 {[%emt 0:00:00]} 55. Ra7 {[%emt 0:00:06]} Rd2+ {[%emt 0:00:00]} 56. Ke1 {[%emt 0:00:47]} Ra2 {[%emt 0:00:00]} 57. Kd1 {[%emt 0:01:04]} Ra1+ {[%emt 0:00:32]} 58. Ke2 {[%emt 0:00:13]} Kxc4 {[%emt 0:00:04]} 59. Kd2 {[%emt 0:00:15]} Ra2+ {[%emt 0:00:15]} 60. Kc1 {[%emt 0:00:06]} Kc3 {[%emt 0:00:17]} 61. Kb1 {[%emt 0:00:21]} Rb2+ {[%emt 0:00:11]} 62. Ka1 {[%emt 0:00:04]} Rb4 {[%emt 0:00:18]} 63. Ka2 {[%emt 0:00:25]} c4 {[%emt 0:00:14]} 64. Rd7 {[%emt 0:00:31]} Kc2 {[%emt 0:00:47]} 65. Ka1 {[%emt 0:00:15]} c3 {[%emt 0:00:21]} 66. Ka2 {[%emt 0:00:37]} Kc1 {[%emt 0:00:23]} 67. Rd5 {[%emt 0:00:40]} Rh4 {[%emt 0:00:24]} 68. Ka1 {[%emt 0:00:47]} c2 {[%emt 0:01:21]} 69. Rd3 {[%emt 0:01:44]} Rh1 {[%emt 0:00:26]} 70. Rd8 {[%emt 0:00:57]} Rd1 {[%emt 0:00:13]} 71. Re8 {[%emt 0:00:23]} Kd2+ {[%emt 0:00:06]} 72. Ka2 {[%emt 0:00:02]} c1=Q {[%emt 0:01:04]} 73. Rd8+ {[%emt 0:00:49]} Ke2 {[%emt 0:00:25]} 74. Re8+ {[%emt 0:00:10]} Qe3 {[%emt 0:00:08]} 75. Re7 {[%emt 0:00:02]} Rd2+ {[%emt 0:00:10]} 0-1

[Event "2017 South African Open Ch"]
[Site "Durban"]
[Date "2017.07.16"]
[Round "5"]
[White "Naidu, Sayen"]
[Black "Mosenya, Ndawana"]
[Result "0-1"]
[ECO "C12"]
[WhiteElo "1865"]
[BlackElo "2062"]
[Annotator "NA"]
[PlyCount "102"]
[EventDate "2017.??.??"]
[EventCountry "RSA"]
[SourceTitle "playchess.com"]
[Source "ChessBase"]
[SourceQuality "1"]
[TimeControl "5400+30"]

1. e4 {[%emt 0:00:00]} e6 {[%emt 0:00:32]} 2. d4 {[%emt 0:00:54]} d5 {[%emt 0:03:10]} 3. Nc3 {[%emt 0:00:14]} Nf6 {[%emt 0:00:10]} 4. Bg5 {[%emt 0:00:41]} Bb4 {[%emt 0:00:06]} 5. e5 {[%emt 0:01:51]} h6 {[%emt 0:00:05]} 6. Bd2 {[%emt 0:00:13]} Bxc3 {[%emt 0:00:09]} 7. bxc3 {[%emt 0:00:26]} Ne4 {[%emt 0:00:05]} 8. Qg4 {[%emt 0:01:12]} Kf8 {[%emt 0:00:13]} 9. h4 {[%emt 0:01:30]} c5 {[%emt 0:00:40]} 10. Bd3 {[%emt 0:03:37]} Nxd2 {[%emt 0:00:51]} 11. Kxd2 {[%emt 0:00:02]} c4 {[%emt 0:00:24]} 12. Be2 {[%emt 0:00:57]} Nc6 {[%emt 0:00:30]} 13. Rh3 {[%emt 0:01:01]} Bd7 {[%emt 0:00:09]} 14. Rg3 {[%emt 0:06:12]} Rg8 {[%emt 0:01:30]} 15. Nh3 {[%emt 0:14:56]} b5 {[%emt 0:00:24]} 16. Nf4 {[%emt 0:05:46]} Ne7 {[%emt 0:00:51]} 17. Nh5 {[%emt 0:07:58]} Nf5 {[%emt 0:00:24]} 18. Rh3 {[%emt 0:03:50]} b4 {[%emt 0:00:20]} 19. cxb4 {[%emt 0:04:15]} Qb6 {[%emt 0:00:05]} 20. c3 {[%emt 0:06:02]} a5 {[%emt 0:00:06]} 21. b5 {[%emt 0:02:54]} Qxb5 {[%emt 0:00:49]} 22. Rc1 {[%emt 0:02:44]} Qb2+ {[%emt 0:00:35]} 23. Rc2 {[%emt 0:00:36]} Qa3 {[%emt 0:00:48]} 24. Qf4 {[%emt 0:06:02]} Ba4 {[%emt 0:01:15]} 25. Rc1 {[%emt 0:01:16]} Rb8 {[%emt 0:01:33]} 26. Bd1 {[%emt 0:06:30]} Qxa2+ {[%emt 0:11:17]} 27. Ke1 {[%emt 0:01:07]} Bxd1 {[%emt 0:00:51]} 28. Rxd1 {[%emt 0:00:39]} Qc2 {[%emt 0:07:08]} 29. g4 {[%emt 0:05:05]} Rb2 {[%emt 0:03:16]} 30. Qf3 {[%emt 0:02:26]} Ne7 {[%emt 0:05:53]} 31. Qe3 {[%emt 0:07:07]} a4 {[%emt 0:02:10]} 32. Rd2 {[%emt 0:02:26]} Qc1+ {[%emt 0:01:12]} 33. Rd1 {[%emt 0:01:09]} Qc2 {[%emt 0:03:57]} 34. Rd2 {[%emt 0:00:15]} Rb1+ {[%emt 0:00:18]} 35. Ke2 {[%emt 0:00:27]} Qc1 {[%emt 0:00:23]} 36. Ng3 {[%emt 0:00:27]} Qe1+ {[%emt 0:03:30]} 37. Kf3 {[%emt 0:00:13]} Qxe3+ {[%emt 0:00:46]} 38. fxe3 {[%emt 0:01:24]} Rb3 {[%emt 0:00:51]} 39. Ra2 {[%emt 0:00:55]} a3 {[%emt 0:00:55]} 40. Rh1 {[%emt 0:01:31]} g5 {[%emt 0:00:28]} 41. h5 {[%emt 0:01:31]} Kg7 {[%emt 0:00:20]} 42. Rha1 {[%emt 0:01:20]} Ra8 {[%emt 0:03:13]} 43. Ne2 {[%emt 0:00:06]} Ng8 {[%emt 0:02:13]} 44. e4 {[%emt 0:01:32]} Ne7 {[%emt 0:00:52]} 45. Ke3 {[%emt 0:00:33]} Nc6 {[%emt 0:00:21]} 46. Kd2 {[%emt 0:00:34]} dxe4 {[%emt 0:00:30]} 47. Kc2 {[%emt 0:00:33]} Ra5 {[%emt 0:06:22]} 48. Rb1 {[%emt 0:00:08]} Rab5 {[%emt 0:00:39]} 49. Rba1 {[%emt 0:00:26]} Rb2+ {[%emt 0:00:13]} 50. Kd1 {[%emt 0:00:35]} e3 {[%emt 0:01:48]} 51. Rxa3 {[%emt 0:00:44]} Rd2+ {[%emt 0:00:07]} 0-1

[Event "2017 South African Open Ch"]
[Site "Durban"]
[Date "2017.07.17"]
[Round "6"]
[White "Makoto, Rodwell"]
[Black "Pon, Matt"]
[Result "1/2-1/2"]
[ECO "A37"]
[WhiteElo "2372"]
[BlackElo "2163"]
[Annotator "NA"]
[PlyCount "31"]
[EventDate "2017.??.??"]
[EventCountry "RSA"]
[SourceTitle "playchess.com"]
[Source "ChessBase"]
[SourceQuality "1"]
[TimeControl "5400+30"]

1. Nf3 {[%emt 0:00:00]} c5 {[%emt 0:00:13]} 2. c4 {[%emt 0:00:00]} Nc6 {[%emt 0:00:28]} 3. g3 {[%emt 0:00:00]} g6 {[%emt 0:00:19]} 4. Bg2 {[%emt 0:00:06]} Bg7 {[%emt 0:00:14]} 5. Nc3 {[%emt 0:00:15]} d6 {[%emt 0:00:48]} 6. O-O {[%emt 0:00:46]} Nf6 {[%emt 0:01:02]} 7. d4 {[%emt 0:00:16]} cxd4 {[%emt 0:00:39]} 8. Nxd4 {[%emt 0:00:08]} Bd7 {[%emt 0:00:21]} 9. b3 {[%emt 0:04:43]} O-O {[%emt 0:02:48]} 10. Bb2 {[%emt 0:00:17]} Qa5 {[%emt 0:04:07]} 11. Nd5 {[%emt 0:21:05]} Nxd5 {[%emt 0:03:18]} 12. Bxd5 {[%emt 0:00:16]} Qb6 {[%emt 0:18:26]} 13. e3 {[%emt 0:08:45]} a5 {[%emt 0:05:39]} 14. Bg2 {[%emt 0:06:09]} Rfe8 $11 {[%emt 0:04:41]} (14... a4 $5) 15. Qd2 {[%emt 0:05:57]} a4 {[%emt 0:04:53]} 16. Nxc6 {[%emt 0:00:23]} 1/2-1/2

[Event "2017 South African Open Ch"]
[Site "Durban"]
[Date "2017.07.17"]
[Round "6"]
[White "Goosen, Anton"]
[Black "Salimu, Reuben"]
[Result "0-1"]
[ECO "D00"]
[WhiteElo "2004"]
[BlackElo "1968"]
[Annotator "NA RC"]
[PlyCount "100"]
[EventDate "2017.??.??"]
[EventCountry "RSA"]
[SourceTitle "playchess.com"]
[Source "ChessBase"]
[SourceQuality "1"]
[TimeControl "5400+30"]

1. d4 {[%emt 0:00:00]} d5 {[%emt 0:00:48]} 2. Bf4 {[%emt 0:00:00]} Nf6 {[%emt 0:00:12]} 3. e3 {[%emt 0:00:00]} c5 {[%emt 0:00:06]} 4. c3 {[%emt 0:00:52]} Nc6 {[%emt 0:00:24]} 5. Nd2 {[%emt 0:00:16] D00: 1 d4 d5: Unusual lines} Qb6 {[%emt 0:00:14]} 6. Qb3 {[%emt 0:00:39]} c4 {[%emt 0:00:10]} 7. Qc2 {[%emt 0:00:17]} Nh5 {[%emt 0:03:20]} 8. Bg5 {[%emt 0:01:20]} e5 {[%emt 0:01:43]} (8... h6 9. Bh4 g5 10. Be2 Ng7 11. Bg3 Bf5 12. Qc1 e6 {1-0 (41) Carlsen,M (2832)-So,W (2812) Leuven 2017}) 9. Be2 {[%emt 0:01:59]} Nf6 {[%emt 0:00:57]} 10. b3 $146 {[%emt 0:06:13]} ({Predecessor:} 10. dxe5 Nxe5 11. Ngf3 Ng6 12. O-O Bc5 {1-0 (30) Pourramezanali,A (2432)-Khalafova,N (2114) Nakhchivan 2015}) 10... cxb3 {[%emt 0:00:26]} 11. axb3 {[%emt 0:00:17]} exd4 {[%emt 0:00:12]} 12. exd4 {[%emt 0:00:20]} Be7 {[%emt 0:00:20]} 13. Ngf3 {[%emt 0:00:12]} Bg4 {[%emt 0:00:44]} 14. O-O {[%emt 0:01:16]} O-O {[%emt 0:00:55]} 15. Rfe1 {[%emt 0:01:14]} Rac8 {[%emt 0:00:34]} 16. Qa2 Rfe8 {[%emt 0:11:09]} 17. Be3 {[%emt 0:12:03]} Qc7 {[%emt 0:04:05]} 18. Bb5 {[%emt 0:01:19]} a6 {[%emt 0:00:27]} 19. Bd3 {[%emt 0:01:41]} Bd6 {[%emt 0:00:37]} 20. h3 {[%emt 0:00:37]} Bh5 {[%emt 0:00:34]} 21. Bg5 {[%emt 0:04:18]} Bg6 {[%emt 0:06:21]} 22. Bxg6 {[%emt 0:00:28]} hxg6 {[%emt 0:00:02]} 23. Bxf6 {[%emt 0:02:50]} gxf6 {[%emt 0:00:17]} 24. Nf1 {[%emt 0:00:38]} Ne7 {[%emt 0:01:24]} 25. Rac1 {[%emt 0:01:06]} Nf5 {[%emt 0:00:58]} 26. Rxe8+ {[%emt 0:07:18]} Rxe8 {[%emt 0:00:55]} 27. c4 {[%emt 0:00:45]} Bf4 {[%emt 0:02:08]} 28. Rc2 {[%emt 0:00:29]} Qd7 {[%emt 0:01:32]} 29. c5 {[%emt 0:00:59]} Re4 {[%emt 0:02:42]} 30. c6 {[%emt 0:02:38]} bxc6 {[%emt 0:01:16]} 31. Qxa6 {[%emt 0:00:12]} Nxd4 {[%emt 0:00:19]} 32. Nxd4 {[%emt 0:00:13]} Rxd4 {[%emt 0:00:09]} 33. Rxc6 {[%emt 0:02:22]} Re4 {[%emt 0:02:57]} 34. Rxf6 {[%emt 0:02:34]} Kg7 {[%emt 0:00:26]} 35. Rb6 {[%emt 0:08:18]} d4 {[%emt 0:04:11]} 36. Qd3 {[%emt 0:03:08]} Re1 {[%emt 0:00:22]} 37. Rb4 {[%emt 0:04:41]} Be5 {[%emt 0:00:37]} (37... Bh2+ $5 38. Kh1 Be5 $15) 38. f4 {[%emt 0:00:59]} (38. Ra4 $11) 38... Bxf4 {[%emt 0:01:43]} 39. Kf2 {[%emt 0:06:40]} Qe7 {[%emt 0:06:24]} 40. Qxd4+ $2 {[%emt 0:03:57]} ({White must play} 40. Rxd4 $15 Bc7 41. Ne3) 40... Be5 {[%emt 0:00:42]} 41. Qd2 {[%emt 0:00:44]} Rb1 $19 {[%emt 0:03:25]} 42. Qe3 {[%emt 0:17:48]} Qxb4 {[%emt 0:02:49]} 43. Qxe5+ {[%emt 0:00:00]} Kh7 {[%emt 0:00:32]} 44. Ne3 {[%emt 0:01:22]} Rxb3 {[%emt 0:03:27]} 45. Ng4 {[%emt 0:00:23]} Qb6+ {[%emt 0:01:38]} 46. Ke2 {[%emt 0:00:52]} Rb2+ {[%emt 0:00:32]} 47. Kf3 {[%emt 0:00:12]} Rb3+ {[%emt 0:00:48]} 48. Ke2 Qa6+ {[%emt 0:00:42]} 49. Kf2 {[%emt 0:00:58]} Qa7+ {[%emt 0:01:50]} 50. Ke2 {[%emt 0:00:12]} Qa2+ {[%emt 0:00:41]} 0-1